{"text_format":"1","workbook":"xlsx","n_sheets":1,"sheets":["BIDTAB"],"not_rendered":{"charts":0,"images":0,"macros":1,"external_links":0,"defined_names":21,"comments":0,"pivot_tables":0},"unopened":[],"bounds":{"document_bytes":16777216,"sheet_cells":100000,"rows_first":2000,"rows_last":500,"rows_between":2000,"halvings":0,"cell_chars":16384,"cell_head_chars":4096},"cells_cut":0,"cells_raw":0,"read":"whole","date_system":"1900"}

{"sheet":"BIDTAB","index":0,"n_rows":22,"n_cols":16,"rows_kept":22,"cut":false,"hidden":false,"merged":[[15,14,15,15],[5,12,5,13],[15,4,15,5],[15,12,15,13],[15,8,15,9],[15,10,15,11],[5,6,5,7],[5,10,5,11],[5,8,5,9],[5,14,5,15],[15,6,15,7]]}
["Description: 556 kcmil 125 mil Covered Wire"]
["Specification No. PT20-0190N"]
["Submittal Deadline: June 18, 2020"]
[" "]
[null,null,null,null,"General Pacific - A1",null,"General Pacific",null,"American Wire Group - ",null,"American Wire Group - ",null,"Anixter - Southwire",null,"Anixter - General Cable"]
[null,null,null,null,null,null,null,null,"Compressed Conductors",null,"Round Conductors"]
["Item","Description","Unit","Quantity","Unit Price","  Amount","Unit Price","  Amount","Unit Price","  Amount","Unit Price","  Amount","Unit Price","  Amount","Unit Price","  Amount"]
["1","Wire, 556KCM AAC, Covered (on Tacoma Power owned reels)","FT",25000,null,null,1.3180000000000001,{"$f":"G8*D8","v":32950},1.3620000000000001,{"$f":"I8*D8","v":34050},1.47,{"$f":"K8*D8","v":36750}]
["A1","Wire, 556KCM AAC, Covered (on non-returnable steel reels)","FT",25000,1.2370000000000001,{"$f":"E9*D9","v":30925}]
[]
[null,"Sub-Total Bid Items",null,null,null,{"$f":"SUM(F8:F9)","v":30925},null,{"$f":"SUM(H8:H9)","v":32950},null,{"$f":"SUM(J8:J9)","v":34050},null,{"$f":"SUM(L8:L9)","v":36750},null,{"$f":"SUM(N8:N9)","v":0},null,{"$f":"SUM(P8:P9)","v":0}]
[]
[null,"10.2% Sales Tax ",null,null,null,{"$f":"F11*0.102","v":3154.35},null,{"$f":"H11*0.102","v":3360.9},null,{"$f":"J11*0.102","v":3473.1},null,{"$f":"L11*0.102","v":3748.5},null,{"$f":"N11*0.102","v":0},null,{"$f":"P11*0.102","v":0}]
[]
[null,"GRAND TOTAL",null,null,null,{"$f":"F11+F13","v":34079.35},null,{"$f":"H11+H13","v":36310.9},null,{"$f":"J11+J13","v":37523.1},null,{"$f":"L11+L13","v":40498.5},null,{"$f":"N11+N13","v":0},null,{"$f":"P11+P13","v":0}]
[null,null,null,null,"Alternate Low Bid",null,"Low Bid",null,"A1 = same price",null,"A1 = same price",null,"Non-responsive",null,"Non-responsive"]
[]
[null,"Notes: "]
[null,"Anixter (Southwire) - Exception taken to pricing terms"]
[null,"Anixter (General Cable) - Unable to provide requested quantity"]
[]
[null," "]